bitfinex/quotes_ETHUSD_20250905
["timestamp","ask_amount","ask_price","bid_price","bid_amount"]
[1757085338466,12.81633709,4289.2,4289.1,1e-08]
[1757085338766,11.97933709,4289.2,4289.1,1e-08]
[1757085338964,7.04843709,4289.2,4289.1,0.28660001]
[1757085339191,8.22343709,4289.2,4289.1,1.52310001]
[1757085339697,5.892,4289.2,4289.1,1.52310001]
[1757085339997,4.175,4289.2,4289.1,1.52310001]
[1757085340380,6.50643709,4289.2,4289.1,1.09130001]
[1757085340798,4.175,4289.2,4289.1,1.56590001]
[1757085340999,6.50643709,4289.2,4289.1,1.56590001]
[1757085342797,6.50643709,4289.2,4289.1,0.28660001]
[1757085342974,6.50643709,4289.2,4289.1,1.57130001]
[1757085343167,4.175,4289.2,4289.1,1.57130001]
[1757085343372,2.61761316,4290.0,4289.1,1.73093001]
[1757085343573,6.50607253,4289.9,4289.2,1.2847]
[1757085343901,4.175,4289.9,4289.8,0.3132]
[1757085344109,4.175,4289.9,4289.8,0.8101]
[1757085344303,4.175,4289.9,4289.8,1.34076141]
[1757085344604,3.4295,4291.2,4289.8,1.34076141]
[1757085344605,1.744,4291.8,4289.8,1.94943755]
[1757085344803,1.744,4291.8,4290.7,2.33056966]
[1757085345102,0.026,4291.8,4290.8,0.21742493]
[1757085345399,0.026,4291.8,4291.2,0.3132]
[1757085345589,0.026,4291.8,4291.2,0.53062493]
[1757085345794,0.026,4291.8,4291.2,1.81532493]
[1757085345995,0.026,4291.8,4291.2,1.81521946]
[1757085346170,0.026,4291.8,4291.2,4.86013122]
[1757085347603,0.026,4291.8,4291.2,7.86013122]
[1757085348108,0.026,4291.8,4291.2,2.52978074]
[1757085348272,0.026,4291.8,4291.2,1.81521946]
[1757085348679,0.026,4291.8,4291.2,4.14556994]
[1757085348877,0.026,4291.8,4291.2,1.81521946]
[1757085349799,2.35602924,4291.8,4291.2,1.81521946]
[1757085349998,0.026,4291.8,4291.2,1.34061946]
[1757085350187,0.026,4291.8,4290.8,0.21731946]
[1757085350393,2.33025903,4291.4,4291.2,0.3132]
[1757085350706,2.33129618,4291.3,4291.2,0.3132]
[1757085350896,0.001,4291.3,4291.2,0.3132]
[1757085351095,0.001,4291.3,4291.2,1.1233]
[1757085351286,0.001,4291.3,4291.2,1.5979]
[1757085351684,0.001,4291.3,4291.2,1.99073508]
[1757085351883,0.001,4291.3,4291.2,4.32108556]
[1757085352406,0.001,4291.3,4291.2,7.32108556]
[1757085352909,0.026,4291.8,4291.7,22.13789029]
[1757085353111,1e-08,4291.8,4291.7,28.02589029]
[1757085353308,1e-08,4291.8,4291.7,31.89169826]
[1757085353807,0.001,4292.2,4291.8,3.0]
[1757085354018,0.001,4292.2,4292.0,2.32991612]
[1757085354235,0.001,4292.2,4292.1,2.66636044]
[1757085354519,0.001,4292.2,4292.1,6.95106044]
[1757085354714,0.001,4292.2,4292.1,7.85585949]
[1757085354877,0.001,4292.2,4292.1,7.97185949]
[1757085355610,0.001,4292.2,4292.1,8.14574161]
[1757085355816,0.0002,4292.2,4292.1,8.14574161]
[1757085356017,0.0002,4292.2,4292.1,12.31574161]
[1757085356420,0.0002,4292.2,4292.1,29.12355292]
[1757085358099,0.0002,4292.2,4292.1,24.95355292]
[1757085358287,0.0002,4292.2,4292.1,29.12255292]
[1757085359849,0.025,4292.8,4292.7,22.13734749]
[1757085360034,0.025,4292.8,4292.7,28.57325546]
[1757085360213,0.025,4292.8,4292.7,30.17115546]
[1757085360414,0.025,4292.8,4292.7,26.11915546]
[1757085361028,0.025,4292.8,4292.7,30.28715546]
[1757085361720,1e-08,4292.8,4292.7,30.28715546]
[1757085362111,0.001,4293.4,4293.3,2.32921063]
[1757085362311,0.001,4293.4,4293.3,28.80916256]
[1757085362510,0.001,4293.4,4293.3,30.49977046]
[1757085362942,0.026,4293.8,4293.7,2.32899364]
[1757085363107,1e-08,4293.8,4293.7,6.51928357]
[1757085363438,1e-08,4293.8,4293.7,11.20989364]
[1757085363643,1e-08,4293.8,4293.7,8.62970885]
[1757085363840,1e-08,4293.8,4293.7,12.79570885]
[1757085364040,1e-08,4293.8,4293.7,8.62970885]
[1757085364344,1e-08,4293.8,4293.7,8.51370885]
[1757085364548,1e-08,4293.8,4293.7,12.67970885]
[1757085365448,1e-08,4293.8,4293.7,12.67870885]
[1757085365616,1e-08,4293.8,4293.7,8.51370885]
[1757085365949,1e-08,4293.8,4293.7,12.67870885]
[1757085367047,1e-08,4293.8,4293.7,8.51370885]
[1757085367351,1e-08,4293.8,4293.7,12.67870885]
[1757085368525,1e-08,4293.8,4293.7,8.51370885]
[1757085368728,1e-08,4293.8,4293.7,12.67770885]
[1757085368950,1e-08,4293.8,4293.7,11.07980885]
[1757085369325,1e-08,4293.8,4293.7,5.32899364]
[1757085369526,0.30720001,4293.8,4293.7,9.49299364]
[1757085369954,1e-08,4293.8,4293.7,23.99299364]
[1757085370275,1e-08,4293.8,4293.7,24.28419364]
[1757085370425,0.30720001,4293.8,4293.7,23.99199364]
[1757085371057,1e-08,4293.8,4293.7,23.99199364]
[1757085371265,1e-08,4293.8,4293.7,26.25990161]
[1757085371435,1e-08,4293.8,4293.7,27.30700161]
[1757085371656,1e-08,4293.8,4293.7,27.73650161]
[1757085373558,1e-08,4293.8,4293.7,22.09690161]
[1757085373751,1e-08,4293.8,4293.7,26.25890161]
[1757085374085,1e-08,4293.8,4293.7,27.73550161]
[1757085374467,1e-08,4293.8,4293.7,27.85150161]
[1757085375179,1e-08,4293.8,4293.7,27.42200161]
[1757085376152,1e-08,4293.8,4293.7,27.85150161]
[1757085376490,0.116,4295.0,4293.7,27.85150161]
[1757085376491,0.09330524,4297.5,4296.7,2.32736751]
[1757085376783,2.32551531,4300.2,4296.7,9.48510426]
[1757085376784,1e-08,4296.8,4296.7,9.48510426]
[1757085377082,0.30720001,4296.8,4296.7,7.04236751]
[1757085377285,0.74330001,4296.8,4296.7,25.70336751]
[1757085377581,0.74330001,4296.8,4296.7,21.54236751]
[1757085377805,0.74330001,4296.8,4296.7,19.215]
[1757085378081,0.74330001,4296.8,4296.7,23.376]
[1757085378265,0.74330001,4296.8,4296.7,16.215]
[1757085378460,0.74330001,4296.8,4296.7,18.66]
[1757085379580,0.30720001,4296.8,4296.7,20.98736751]
[1757085379780,0.30720001,4296.8,4296.7,21.66]
[1757085379949,0.74330001,4296.8,4296.7,21.66]
[1757085380150,0.74330001,4296.8,4296.7,14.5]
[1757085380347,2.32749908,4296.5,4295.8,4.16]
[1757085380559,0.4361,4296.4,4295.9,4.16]
[1757085380763,0.3072,4296.0,4295.9,7.16]
[1757085380982,0.7433,4296.0,4295.9,3.0]
[1757085381279,0.7433,4296.0,4295.9,21.66]
[1757085382391,0.7433,4296.0,4295.4,4.16]
[1757085382392,0.9452,4296.0,4295.4,4.16]
[1757085382595,0.4361,4295.9,4295.4,3.0]
[1757085382898,0.4361,4296.3,4295.6,3.0]
[1757085383091,1e-08,4296.8,4295.8,3.0]
[1757085383293,0.43530001,4297.0,4296.3,2.32757691]
[1757085383496,0.025,4297.8,4296.7,2.3273287]
[1757085383793,0.025,4297.8,4296.8,18.659]
[1757085384090,2.32694686,4297.5,4296.8,18.659]
[1757085384295,0.3072,4296.9,4296.8,23.98631334]
[1757085384486,0.48806728,4297.5,4296.8,23.98631334]
[1757085384690,0.2269,4297.8,4296.9,2.32720798]
[1757085384866,0.2269,4297.8,4297.0,4.159]
[1757085385295,0.3072,4297.1,4297.0,4.159]
[1757085385797,0.4361,4297.7,4297.1,3.0]
[1757085386000,0.3072,4297.1,4296.9,3.0]
[1757085386491,0.116,4297.2,4297.1,3.0]
[1757085386868,0.4232,4297.2,4297.0,4.159]
[1757085387064,0.116,4297.2,4297.0,4.159]
[1757085387383,0.3072,4297.1,4297.0,4.159]
[1757085387585,0.7433,4297.1,4297.0,0.21678983]
[1757085388800,0.116,4297.2,4297.0,0.21678983]
[1757085388973,0.116,4297.2,4297.1,4.37478983]
[1757085389173,0.116,4297.2,4297.1,0.21678983]
[1757085389373,0.4232,4297.2,4297.1,0.21678983]
[1757085389988,0.8593,4297.2,4297.1,0.21678983]
[1757085390183,3.38902856,4297.2,4297.1,0.21678983]
[1757085390383,2.32722656,4297.0,4295.3,2.32809512]
[1757085390698,2.32772708,4296.1,4295.8,14.525]
[1757085390903,0.3072,4295.9,4295.8,14.525]
[1757085391208,2.32732413,4296.8,4295.8,14.525]
[1757085391209,3.0,4297.7,4295.8,14.525]
[1757085391390,0.3072,4295.9,4295.8,0.025]
[1757085391567,3.07110092,4295.9,4295.8,0.025]
[1757085391771,3.61098205,4295.9,4295.8,0.025]
[1757085391994,3.81358205,4295.9,4295.8,0.025]
[1757085393304,3.61098205,4295.9,4295.8,0.025]
[1757085393501,1.28318113,4295.9,4295.8,0.025]
[1757085393904,0.3072,4295.9,4295.8,0.025]
[1757085394118,0.7433,4295.9,4295.8,0.025]
[1757085394415,3.07110092,4295.9,4295.8,0.025]
[1757085394621,0.7433,4295.9,4295.8,0.025]
[1757085394815,0.7433,4295.9,4295.8,0.029]
[1757085395689,3.07110092,4295.9,4295.8,0.029]
[1757085396011,3.61098469,4295.9,4295.8,0.029]
[1757085397043,3.81358469,4295.9,4295.8,0.029]
[1757085397819,0.4361,4296.5,4295.8,0.029]
[1757085398019,0.3072,4295.9,4295.8,0.029]
[1757085398230,0.31963185,4297.2,4295.8,0.029]
[1757085398231,0.75573185,4297.2,4295.8,0.029]
[1757085398418,2.32728,4296.9,4295.8,0.7497]
[1757085398729,0.001,4297.2,4295.9,0.7559]
[1757085398933,2.32718198,4297.1,4296.0,14.5]
[1757085399236,0.001,4297.2,4296.1,4.158]
[1757085399442,0.001,4297.2,4296.3,2.32755754]
[1757085399606,0.001,4297.2,4296.3,2.32755176]
[1757085399920,0.68161074,4297.2,4296.2,14.5]
[1757085400121,0.68161074,4297.2,4296.3,2.32756383]
[1757085400122,0.116,4296.5,4296.3,2.32756383]
[1757085400339,0.116,4296.5,4296.4,0.7691]
[1757085400635,0.116,4296.5,4296.2,14.5]
[1757085401050,0.116,4296.7,4296.6,2.32742168]
[1757085401208,0.116,4296.7,4296.6,3.87262168]
[1757085401538,0.116,4296.7,4296.6,8.03062168]
[1757085401735,0.116,4296.7,4296.6,11.03062168]
[1757085401946,0.001,4297.2,4297.1,2.32715086]
[1757085402149,0.001,4297.2,4297.1,6.48515086]
[1757085402330,0.001,4297.2,4297.1,11.49578766]
[1757085402847,0.001,4297.2,4297.1,11.61178766]
[1757085403013,0.001,4297.2,4297.1,10.56395086]
[1757085403336,0.001,4297.2,4297.1,11.03035086]
[1757085403528,0.001,4297.2,4297.1,25.53035086]
[1757085404146,0.001,4297.2,4297.1,21.37235086]
[1757085404348,0.001,4297.2,4297.1,17.5]
[1757085404550,0.2964,4297.2,4297.1,14.5]
[1757085404848,0.2964,4297.2,4296.5,5.4841]
[1757085404849,0.116,4297.1,4296.6,7.157]
[1757085405050,0.116,4296.8,4296.6,7.157]
[1757085405351,0.116,4296.8,4296.7,14.5]
[1757085405714,0.4114,4296.8,4296.0,0.7691]
[1757085405920,0.116,4296.4,4296.2,3.0]
[1757085406236,0.792,4296.8,4296.3,14.5]
[1757085406549,0.2954,4296.4,4296.3,14.5]
[1757085406758,0.2954,4296.4,4295.8,4.186]
[1757085406759,0.116,4296.2,4295.8,4.186]
[1757085406958,0.116,4296.2,4295.9,3.09686303]
[1757085407118,0.116,4296.2,4296.1,0.3097]
[1757085407464,0.116,4296.2,4296.0,15.2691]
[1757085407760,0.4298,4297.2,4296.1,7.56348987]
[1757085407761,0.116,4296.6,4296.1,7.56348987]
[1757085407953,0.116,4296.6,4296.1,7.56347957]
[1757085408121,0.116,4296.6,4296.1,7.56347006]
[1757085408317,0.001,4297.2,4296.2,4.2355]
[1757085408518,0.001,4297.2,4297.1,2.32715086]
[1757085408754,0.001,4297.2,4297.1,6.48415086]
[1757085408923,0.001,4297.2,4297.1,7.25325086]
[1757085409130,0.001,4297.2,4297.1,11.98739806]
[1757085409468,0.001,4297.2,4296.9,4.157]
[1757085409670,0.001,4297.2,4296.9,4.9261]
[1757085409858,0.001,4297.2,4297.0,3.09627564]
[1757085410061,0.001,4297.2,4297.0,0.7691]
[1757085410445,0.001,4297.2,4297.1,17.90595086]
[1757085410652,0.001,4297.2,4297.1,15.5788]
[1757085411168,0.0002,4297.2,4297.1,19.97709715]
[1757085411371,0.0002,4297.2,4297.1,17.64994629]
[1757085411665,0.0002,4297.2,4297.1,18.656]
[1757085411872,0.0002,4297.2,4297.1,14.5]
[1757085412866,0.0002,4297.2,4297.1,14.71716054]
[1757085413075,0.0002,4297.2,4297.1,0.21716054]
[1757085413076,0.2956,4297.2,4297.1,0.21716054]
[1757085413286,0.7244,4297.2,4297.1,0.21716054]
[1757085413436,4.14863193,4297.2,4297.1,0.21716054]
[1757085413641,3.84349671,4297.2,4297.1,0.21716054]
[1757085414145,3.11917235,4297.1,4296.3,4.156]
[1757085414464,0.792,4297.1,4296.4,0.21721032]
[1757085414769,2.32715689,4297.1,4296.5,0.21721032]
[1757085414935,1.30041998,4297.1,4296.6,0.21721032]
[1757085415142,0.792,4296.8,4296.7,0.21721032]
[1757085415570,0.0002,4297.2,4296.7,0.21721032]
[1757085415834,2.32724913,4297.0,4296.8,0.21721032]
[1757085416049,3.11924913,4297.0,4296.9,0.21721032]
[1757085416474,3.11931327,4296.9,4296.2,14.5]
[1757085416686,0.792,4296.9,4296.3,0.21725612]
[1757085416891,0.792,4297.0,4296.4,0.21725612]
[1757085417187,0.4288,4297.1,4296.5,0.21725612]
[1757085417386,2.3272109,4297.0,4296.6,0.21725612]
[1757085417686,3.11931334,4296.8,4296.7,0.21725612]
[1757085417886,3.41471334,4296.8,4296.7,0.21725612]
[1757085418086,3.41471334,4296.8,4296.7,0.21726861]
[1757085418290,3.84351334,4296.8,4296.7,0.21726861]
[1757085418486,1.5162,4296.8,4296.1,0.004]
[1757085418792,2.32740759,4296.7,4296.2,0.21729129]
[1757085418997,2.32740759,4296.7,4296.3,0.21729129]
[1757085419165,2.32740759,4296.7,4296.4,0.21729129]
[1757085419374,3.11926473,4296.9,4296.5,0.21729129]
[1757085419561,0.40564902,4296.8,4296.6,0.21729129]
[1757085419762,0.116,4296.9,4296.7,1.76250966]
[1757085419963,0.116,4296.9,4296.8,0.98640966]
[1757085420189,0.116,4296.9,4296.8,0.21730966]
[1757085420396,3.16745918,4296.9,4296.8,0.21730966]
[1757085420604,3.95945918,4296.9,4296.8,0.21730966]
[1757085420909,1.0400854,4296.9,4296.8,0.21729842]
[1757085421063,0.4114,4296.9,4296.8,0.21729842]
[1757085421405,3.11931763,4296.8,4295.8,0.029]
[1757085421575,3.11931763,4296.8,4296.2,0.21732407]
[1757085421576,0.792,4296.6,4296.2,0.21732407]
[1757085421790,3.11953002,4296.4,4296.3,0.21732407]
[1757085421995,3.41493002,4296.4,4296.3,0.21732407]
[1757085422316,2.13331959,4296.4,4296.3,0.21732407]
[1757085422477,3.84373002,4296.4,4296.3,0.21732407]
[1757085422809,3.11963837,4296.2,4295.8,0.029]
[1757085423300,3.84383837,4296.2,4295.8,0.029]
[1757085423685,4.02543837,4296.2,4295.8,0.029]
[1757085425218,7.99883837,4296.2,4295.8,0.029]
[1757085429422,8.18043837,4296.2,4295.8,0.029]
[1757085429919,3.11980092,4295.9,4295.8,0.029]
[1757085430120,7.83480092,4295.9,4295.8,1e-08]
[1757085430294,8.78900092,4295.9,4295.8,1e-08]
[1757085430701,8.60740092,4295.9,4295.8,1e-08]
[1757085431299,8.78900092,4295.9,4295.8,1e-08]
[1757085432012,12.94400092,4295.9,4295.8,1e-08]
[1757085432719,12.8795385,4295.9,4295.8,1e-08]
[1757085433706,13.0611385,4295.9,4295.8,1e-08]
[1757085434253,12.8795385,4295.9,4295.8,1e-08]
[1757085435634,13.0332385,4295.9,4295.8,1e-08]
[1757085435804,13.0332385,4295.9,4294.8,0.025]
[1757085435805,0.792,4295.6,4294.8,1e-08]
[1757085436006,6.12034291,4294.9,4294.8,1e-08]
[1757085436339,3.12088516,4293.9,4292.8,0.025]
[1757085436649,0.792,4293.2,4292.8,0.025]
[1757085436801,3.12142765,4292.9,4292.8,0.025]
[1757085437707,3.42332765,4292.9,4292.8,0.025]
[1757085437908,3.89402765,4292.9,4292.8,0.025]
[1757085438528,3.12142765,4292.9,4292.8,0.025]
[1757085438706,7.82150775,4292.9,4292.8,1.1007]
[1757085439107,3.66570775,4292.9,4292.8,1.1007]
[1757085439312,7.27562765,4292.9,4292.8,1.1007]
[1757085439806,7.27562765,4292.9,4292.8,0.025]
[1757085440207,7.57752765,4292.9,4292.8,0.025]
[1757085440430,11.04822765,4292.9,4292.8,1e-08]
[1757085441904,11.04822765,4292.9,4292.4,0.004]
[1757085441905,3.12164472,4292.5,4292.4,1e-08]
[1757085442107,11.99264472,4292.5,4292.4,1e-08]
[1757085442428,12.76524472,4292.5,4292.4,1e-08]
[1757085442821,9.31080856,4292.5,4292.4,1e-08]
[1757085443134,13.46580856,4292.5,4292.4,1e-08]
[1757085443533,7.74620856,4292.5,4292.4,1e-08]
[1757085443733,11.20064472,4292.5,4292.4,1e-08]
[1757085443947,8.20064472,4292.5,4292.4,1.07570001]
[1757085444451,8.99264472,4292.5,4292.4,1.07570001]
[1757085444601,4.155,4292.5,4292.4,1.54750001]
[1757085444800,4.155,4292.5,4292.4,1.07570001]
[1757085445049,4.155,4292.5,4292.4,1.54750001]
[1757085445560,6.48464472,4292.5,4292.4,1e-08]
[1757085445713,7.27664472,4292.5,4292.4,1e-08]
[1757085446223,7.27664472,4292.5,4292.4,1.07570001]
[1757085446645,7.27664472,4292.5,4292.4,1e-08]
[1757085447073,7.27664472,4292.5,4292.4,1.07570001]
[1757085447419,4.947,4292.5,4292.4,1.07570001]
[1757085447619,4.155,4292.5,4292.4,1.54750001]
[1757085447846,6.48464472,4292.5,4292.4,1.54750001]
[1757085448144,7.27664472,4292.5,4292.4,1.54750001]
[1757085449349,7.27664472,4292.5,4292.4,1.07570001]
[1757085449846,7.27664472,4292.5,4292.4,1e-08]
[1757085450431,7.27664472,4292.5,4292.4,0.77040001]
[1757085450849,7.27664472,4292.5,4292.4,1e-08]
[1757085451950,4.947,4292.5,4292.4,1.54750001]
[1757085452647,7.27664472,4292.5,4292.4,1.54750001]
[1757085452854,4.947,4292.5,4292.4,1.54750001]
[1757085453460,7.27664472,4292.5,4292.4,1.54750001]
[1757085453667,4.947,4292.5,4292.4,1.54750001]
[1757085454233,7.27664472,4292.5,4292.4,1.54750001]
[1757085454572,4.947,4292.5,4292.4,1.54750001]
[1757085455229,7.27664472,4292.5,4292.4,1.54750001]
[1757085455458,4.154,4292.5,4292.4,1.54750001]
[1757085455642,0.001,4293.3,4292.4,1.70265001]
[1757085455848,0.116,4292.6,4292.5,1.2422]
[1757085456055,0.116,4292.6,4292.5,1.5475]
[1757085458263,0.116,4292.9,4292.5,3.87714472]
[1757085458461,4.27,4293.2,4292.7,2.32949226]
[1757085458666,4.27,4293.2,4292.5,2.63494472]
[1757085458667,0.025,4294.8,4293.2,3.0]
[1757085458830,2.44577408,4294.2,4293.2,3.0]
[1757085459034,2.32879603,4294.1,4293.7,0.3053]
[1757085459254,0.001,4294.2,4293.7,0.3053]
[1757085459457,2.32881129,4294.1,4293.7,0.3053]
[1757085459657,2.32975729,4294.2,4293.7,1.4952]
[1757085459862,0.001,4294.2,4293.7,1.4952]
[1757085460062,0.116,4294.0,4293.7,1.4952]
[1757085461965,0.116,4294.0,4293.7,6.82419364]
[1757085462170,0.001,4294.2,4293.7,6.94019364]
[1757085462474,0.001,4294.2,4293.7,7.86712153]
[1757085463379,0.001,4294.2,4293.7,12.01912153]
[1757085463960,0.001,4294.2,4293.7,5.53812789]
[1757085464162,0.001,4294.2,4293.7,6.94019364]
[1757085464467,0.001,4294.2,4293.7,11.09219364]
[1757085464653,0.001,4294.2,4293.7,6.94019364]
[1757085464854,0.001,4294.2,4293.7,11.09219364]
[1757085465365,2.32975965,4294.2,4293.7,4.0605]
[1757085465568,0.001,4294.2,4293.7,8.2115]
[1757085465737,2.32972317,4294.2,4293.7,8.2115]
[1757085466081,0.001,4294.2,4293.7,8.6462]
[1757085466252,0.001,4294.2,4293.7,9.51082]
[1757085466451,0.001,4294.2,4293.7,8.6462]
[1757085466648,0.001,4294.2,4293.7,10.97519364]
[1757085466847,0.0252,4293.8,4293.7,10.97519364]
[1757085467264,0.0252,4293.8,4293.7,4.4952]
[1757085467468,0.0252,4293.8,4293.7,4.0605]
[1757085467641,0.0252,4293.8,4293.3,3.0]
[1757085467841,0.3248,4293.8,4292.9,0.4347]
[1757085468078,0.3248,4293.8,4293.0,0.7552]
[1757085468570,0.0252,4293.8,4293.0,0.7552]
[1757085468759,0.0252,4293.8,4293.1,3.0]
[1757085469069,0.8172,4293.8,4293.1,3.0]
[1757085469255,0.0252,4293.8,4293.0,0.7552]
[1757085469670,3.1461546,4293.8,4293.0,0.7552]
[1757085469970,3.14614002,4293.8,4293.0,0.7552]
[1757085470169,0.0252,4293.8,4293.0,1.52213737]
[1757085470442,0.0252,4293.8,4293.7,5.62569364]
[1757085470644,0.001,4294.2,4294.1,2.32877669]
[1757085470953,0.025,4294.8,4293.9,2.32888516]
[1757085471140,0.025,4294.8,4294.7,0.2967]
[1757085471342,0.025,4294.8,4294.7,10.03768051]
[1757085471572,0.025,4294.8,4294.7,8.89912917]
[1757085471811,0.025,4294.8,4294.7,11.22758051]
[1757085472371,0.025,4294.8,4294.7,8.89912917]
[1757085472539,0.025,4294.8,4294.7,11.22658051]
[1757085472742,0.025,4294.8,4293.8,0.4347]
[1757085472942,0.025,4294.8,4294.1,0.7552]
[1757085473173,0.025,4294.8,4294.2,4.149]
[1757085473373,0.025,4294.8,4294.1,4.9042]
[1757085473578,0.026,4294.8,4294.1,4.9042]
[1757085473977,0.026,4294.8,4294.1,1.58909]
[1757085474178,0.026,4294.8,4294.1,8.73809]
[1757085474375,0.026,4294.8,4294.1,4.58909]
[1757085474577,0.4908,4294.8,4294.1,4.149]
[1757085474780,0.4908,4294.8,4293.8,4.149]
[1757085474951,2.32845134,4294.7,4293.7,3.0]
[1757085475150,2.32851151,4294.6,4293.9,3.0]
[1757085475349,0.116,4294.2,4293.8,4.148]
[1757085475684,0.116,4294.2,4293.9,3.7552]
[1757085476050,0.116,4294.2,4294.0,0.7552]
[1757085476247,0.116,4294.2,4294.1,0.2967]
[1757085476582,0.116,4294.5,4294.2,3.0]
[1757085476883,0.116,4294.5,4294.4,3.2967]
[1757085477178,0.026,4294.8,4294.5,3.0]
[1757085477369,0.026,4294.8,4294.5,3.7552]
[1757085477571,0.026,4294.8,4294.7,0.2967]
[1757085477773,0.026,4294.8,4294.7,4.4447]
[1757085477958,0.026,4294.8,4294.7,5.1999]
[1757085478987,0.026,4294.8,4294.7,7.52835134]
[1757085479293,0.026,4294.8,4294.7,12.35837969]
[1757085479781,0.026,4294.8,4294.7,3.0]
[1757085479972,0.026,4294.8,4294.7,7.147]
[1757085480685,0.7904,4294.8,4293.7,0.7552]
[1757085480986,0.3256,4294.8,4293.8,0.4347]
[1757085481186,0.3256,4294.8,4293.9,5.32884152]
[1757085481485,0.026,4294.8,4294.1,3.0]
[1757085481683,0.026,4294.8,4294.2,4.146]
[1757085482166,0.026,4294.8,4294.7,22.40070934]
[1757085482361,0.001,4295.3,4295.0,2.32825713]
[1757085482671,0.001,4295.3,4295.2,3.0]
[1757085482875,0.001,4295.3,4295.2,3.2967]
[1757085483085,0.001,4295.3,4295.2,4.91516]
[1757085483555,0.001,4295.3,4294.6,2.32847583]
[1757085483753,0.001,4295.3,4294.8,3.0]
[1757085483984,0.001,4295.3,4295.2,0.2967]
[1757085484153,0.001,4295.3,4294.9,0.7552]
[1757085484485,0.001,4295.3,4295.0,3.0]
[1757085484786,0.001,4295.3,4295.0,4.146]
[1757085485088,0.001,4295.3,4295.1,3.0]
[1757085485282,0.001,4295.3,4295.2,0.2967]
[1757085485483,0.001,4295.3,4295.2,4.0519]
[1757085485859,0.001,4295.3,4295.2,3.0]
[1757085486389,0.001,4295.3,4295.2,7.145]
[1757085486684,0.001,4295.3,4295.2,10.95978029]
[1757085486859,0.001,4295.3,4295.2,8.6316]
[1757085487266,0.001,4295.3,4295.2,8.1969]
[1757085487466,0.001,4295.3,4295.2,7.145]
[1757085488402,0.001,4295.3,4295.2,10.48438029]
[1757085488585,0.001,4295.3,4295.2,8.1969]
[1757085488789,0.001,4295.3,4295.2,7.145]
[1757085489458,0.2963,4295.3,4295.2,7.144]
[1757085489775,0.7472,4295.3,4295.2,14.5]
[1757085490015,0.001,4295.3,4295.2,14.5]
[1757085490290,0.001,4295.3,4295.1,6.47223442]
[1757085490493,0.05,4295.8,4295.7,2.3279093]
[1757085490695,0.05,4295.8,4295.7,19.9439093]
[1757085490899,0.05,4295.8,4295.7,21.0237093]
[1757085491203,0.05,4295.8,4295.7,25.1677093]
[1757085491499,0.05,4295.8,4295.7,23.91090797]
[1757085491715,0.05,4295.8,4295.7,17.5]
[1757085491895,0.3453,4295.8,4295.7,21.643]
[1757085492065,0.7962,4295.8,4295.7,14.5]
[1757085492495,3.91605511,4295.8,4295.7,14.5]
[1757085492793,3.91605511,4295.8,4294.8,3.7706]
[1757085492794,2.32791857,4295.7,4295.3,4.143]
[1757085492982,0.116,4295.3,4294.2,0.7706]
[1757085493182,0.116,4294.9,4294.3,6.47165785]
[1757085493396,0.116,4294.9,4294.4,14.5]
[1757085493615,0.116,4294.9,4294.6,0.004]
[1757085494508,0.116,4294.9,4294.6,3.004]
[1757085494703,0.1152,4294.9,4294.6,0.004]
[1757085495467,2.62375134,4294.7,4294.6,0.004]
[1757085495680,3.41575134,4294.7,4294.6,0.004]
[1757085495878,1.5382,4294.7,4294.6,0.004]
[1757085496295,3.86665134,4294.7,4294.6,0.004]
[1757085496501,1.0873,4294.7,4294.6,0.004]
[1757085496811,3.86665134,4294.7,4294.6,0.004]
[1757085497217,4.51058934,4294.7,4294.6,0.004]
[1757085497371,2.182138,4294.7,4294.6,0.004]
[1757085497571,1.5382,4294.7,4294.6,0.004]
[1757085497797,3.86665134,4294.7,4294.6,0.004]
[1757085499174,0.792,4295.0,4294.6,0.004]
[1757085499876,0.2953,4294.7,4294.6,0.004]
[1757085500071,0.792,4294.8,4294.6,0.004]
[1757085500277,0.051,4295.8,4294.6,1.0838]
[1757085500497,2.5045483,4295.7,4294.7,2.32844183]
[1757085500777,2.50452612,4295.7,4294.7,2.32844345]
[1757085500977,2.37890055,4295.8,4294.7,2.32845134]
[1757085501175,0.051,4295.8,4294.8,1.2275]
[1757085501375,0.051,4295.8,4295.7,0.3092]
[1757085501616,0.051,4295.8,4295.1,3.0]
[1757085501911,0.051,4295.8,4295.2,14.5]
[1757085502807,0.792,4295.7,4295.2,14.5]
[1757085503116,0.792,4295.5,4295.2,14.5]
[1757085503307,0.792,4295.7,4295.2,14.5]
[1757085503508,0.051,4295.8,4295.2,14.5]
[1757085504307,2.37889814,4295.8,4295.2,14.5]
[1757085504615,0.051,4295.8,4295.2,14.5]
[1757085504826,0.792,4295.2,4294.6,0.004]
[1757085504978,0.792,4295.0,4294.6,0.004]
[1757085505172,0.4318,4295.8,4294.6,0.004]
[1757085505173,4.14,4295.5,4294.6,0.004]
[1757085505376,3.12008374,4295.4,4294.7,0.7706]
[1757085505688,0.116,4294.7,4294.6,0.004]
[1757085507301,0.116,4294.7,4294.6,1.5407]
[1757085507599,0.116,4295.0,4294.6,6.36762681]
[1757085507805,0.116,4295.0,4294.7,1.2275]
[1757085508024,0.116,4295.0,4294.7,4.2275]
[1757085508334,0.051,4295.8,4294.9,5.637536]
[1757085508504,0.116,4295.3,4295.0,4.139]
[1757085508700,0.051,4295.8,4295.2,0.3092]